bitfinex/quotes_BTCUSD_20241128
["timestamp","ask_amount","ask_price","bid_price","bid_amount"]
[1732761625057,0.41565502,96347.0,96346.0,0.0008585]
[1732761629319,0.41565502,96347.0,96346.0,5e-07]
[1732761629320,0.57565502,96347.0,96346.0,5e-07]
[1732761630409,0.71326832,96347.0,96346.0,5e-07]
[1732761630625,0.70826832,96347.0,96346.0,5e-07]
[1732761630830,0.71426832,96347.0,96346.0,5e-07]
[1732761631472,0.57465502,96347.0,96346.0,5e-07]
[1732761631894,0.57995349,96347.0,96346.0,5e-07]
[1732761632114,0.58895349,96347.0,96346.0,5e-07]
[1732761632320,0.68197819,96347.0,96346.0,5e-07]
[1732761632552,0.67597819,96347.0,96346.0,5e-07]
[1732761632773,0.66697819,96347.0,96346.0,5e-07]
[1732761632993,0.67397819,96347.0,96346.0,5e-07]
[1732761633206,0.58995349,96347.0,96346.0,5e-07]
[1732761633466,0.67595988,96347.0,96346.0,5e-07]
[1732761633666,0.66695988,96347.0,96346.0,5e-07]
[1732761633875,0.59095349,96347.0,96346.0,5e-07]
[1732761635419,0.68395988,96347.0,96346.0,5e-07]
[1732761636317,0.59095349,96347.0,96346.0,5e-07]
[1732761636553,0.60095349,96347.0,96346.0,5e-07]
[1732761636766,0.69395988,96347.0,96346.0,5e-07]
[1732761637004,1.39395988,96347.0,96346.0,5e-07]
[1732761637416,1.30095349,96347.0,96346.0,5e-07]
[1732761638080,1.39390943,96347.0,96346.0,5e-07]
[1732761638299,1.30095349,96347.0,96346.0,5e-07]
[1732761638505,1.30063841,96347.0,96346.0,5e-07]
[1732761639373,1.44006117,96347.0,96346.0,5e-07]
[1732761639585,1.30063841,96347.0,96346.0,5e-07]
[1732761640252,0.01,96334.0,96330.0,0.0017168]
[1732761640461,0.334108,96331.0,96330.0,6e-07]
[1732761640680,0.43695321,96331.0,96330.0,6e-07]
[1732761640888,0.45224742,96331.0,96330.0,6e-07]
[1732761642213,0.49476331,96331.0,96330.0,6e-07]
[1732761643099,0.50376014,96331.0,96330.0,6e-07]
[1732761643314,0.50776014,96331.0,96330.0,6e-07]
[1732761643982,0.47549455,96331.0,96330.0,6e-07]
[1732761644402,0.4917546,96331.0,96330.0,6e-07]
[1732761645714,0.52402478,96331.0,96330.0,6e-07]
[1732761646141,0.4917546,96331.0,96330.0,6e-07]
[1732761647069,0.52402797,96331.0,96330.0,6e-07]
[1732761647744,0.52376709,96331.0,96330.0,6e-07]
[1732761648798,0.44372797,96331.0,96330.0,6e-07]
[1732761649007,0.4114546,96331.0,96330.0,6e-07]
[1732761650308,0.2614546,96331.0,96330.0,6e-07]
[1732761650752,0.2614546,96331.0,96330.0,0.0761006]
[1732761654383,0.263172,96331.0,96330.0,0.0761006]
[1732761657804,0.25157439,96331.0,96330.0,0.0761006]
[1732761659273,0.25157439,96331.0,96330.0,6e-07]
[1732761660845,0.14872918,96331.0,96330.0,0.12526148]
[1732761661065,0.04627166,96331.0,96330.0,0.22907048]
[1732761661555,0.03097745,96331.0,96330.0,0.22907048]
[1732761661789,0.03097745,96331.0,96330.0,0.12526148]
[1732761662323,0.04398645,96331.0,96330.0,0.22907048]
[1732761662534,0.02697745,96331.0,96330.0,0.22907048]
[1732761662742,0.01797745,96331.0,96330.0,0.22907048]
[1732761662974,0.02197745,96331.0,96330.0,0.22907048]
[1732761663192,0.02997745,96331.0,96330.0,0.12526148]
[1732761663428,0.02197745,96331.0,96330.0,0.12526148]
[1732761663647,0.01897745,96331.0,96330.0,0.12626148]
[1732761663897,0.03298645,96331.0,96330.0,0.12626148]
[1732761664293,0.03298645,96331.0,96330.0,0.23007048]
[1732761664759,0.01997745,96331.0,96330.0,0.23007048]
[1732761665225,0.01897745,96331.0,96330.0,0.23007048]
[1732761665670,0.01797745,96331.0,96330.0,0.22907048]
[1732761665962,0.0017174,96331.0,96330.0,0.22907048]
[1732761666180,0.0017174,96331.0,96330.0,0.23007048]
[1732761666617,0.0027174,96331.0,96330.0,0.23007048]
[1732761667113,0.0027174,96331.0,96330.0,0.24966019]
[1732761667114,0.0017174,96331.0,96330.0,0.24966019]
[1732761667560,0.0027174,96331.0,96330.0,0.25066019]
[1732761667785,0.00263734,96331.0,96330.0,0.25066019]
[1732761668001,0.00263734,96331.0,96330.0,0.23007048]
[1732761668478,0.10644534,96331.0,96330.0,0.12626148]
[1732761668709,0.00363734,96331.0,96330.0,0.12626148]
[1732761668946,0.01570385,96331.0,96330.0,0.12526148]
[1732761669157,0.00263734,96331.0,96330.0,0.12526148]
[1732761669377,0.00263734,96331.0,96330.0,0.12626148]
[1732761669593,0.10544534,96331.0,96330.0,0.12526148]
[1732761669834,0.11851185,96331.0,96330.0,0.12526148]
[1732761670339,0.11851185,96331.0,96330.0,0.07636148]
[1732761670556,0.11851185,96331.0,96330.0,0.0010006]
[1732761671226,0.11851185,96331.0,96330.0,0.00126148]
[1732761672099,0.11851185,96331.0,96330.0,0.00026148]
[1732761673501,0.12051185,96331.0,96330.0,0.00026148]
[1732761674592,0.12051185,96331.0,96330.0,6e-07]
[1732761675538,0.22335706,96331.0,96330.0,6e-07]
[1732761675781,0.32895706,96331.0,96330.0,6e-07]
[1732761676926,0.32695706,96331.0,96330.0,6e-07]
[1732761677162,0.32895706,96331.0,96330.0,6e-07]
[1732761677418,0.33919287,96331.0,96330.0,6e-07]
[1732761678498,0.53549287,96331.0,96330.0,6e-07]
[1732761678965,0.56781002,96331.0,96330.0,6e-07]
[1732761679422,0.56547589,96331.0,96330.0,6e-07]
[1732761679637,0.56947589,96331.0,96330.0,6e-07]
[1732761679869,0.57847589,96331.0,96330.0,6e-07]
[1732761681438,0.54615874,96331.0,96330.0,6e-07]
[1732761684335,0.57848685,96331.0,96330.0,6e-07]
[1732761684751,0.54615874,96331.0,96330.0,6e-07]
[1732761685661,0.57848618,96331.0,96330.0,6e-07]
[1732761687018,0.54615874,96331.0,96330.0,6e-07]
[1732761687232,0.57848404,96331.0,96330.0,6e-07]
[1732761687454,0.54615874,96331.0,96330.0,6e-07]
[1732761687682,0.5784821,96331.0,96330.0,6e-07]
[1732761687910,0.54615874,96331.0,96330.0,6e-07]
[1732761688818,0.57848003,96331.0,96330.0,6e-07]
[1732761692501,0.54615874,96331.0,96330.0,6e-07]
[1732761693193,0.57847044,96331.0,96330.0,6e-07]
[1732761693405,0.54615874,96331.0,96330.0,6e-07]
[1732761697265,0.5784676,96331.0,96330.0,6e-07]
[1732761698233,0.58820672,96331.0,96330.0,6e-07]
[1732761698927,0.58820672,96331.0,96323.0,0.0017174]
[1732761698928,0.402522,96318.0,96317.0,4e-07]
[1732761699155,0.53768171,96318.0,96317.0,4e-07]
[1732761699384,0.5506281,96318.0,96317.0,4e-07]
[1732761701186,0.5556281,96318.0,96317.0,4e-07]
[1732761701402,0.5651027,96318.0,96317.0,4e-07]
[1732761701618,0.5601027,96318.0,96317.0,4e-07]
[1732761702304,0.58632873,96318.0,96317.0,4e-07]
[1732761707249,0.276829,96312.0,96311.0,0.00264791]
[1732761707476,0.41198871,96312.0,96311.0,0.00264791]
[1732761707687,0.42487159,96312.0,96311.0,0.00264791]
[1732761709062,0.43387159,96312.0,96311.0,0.00264791]
[1732761709287,0.43887159,96312.0,96311.0,0.00264791]
[1732761711432,0.67260411,96312.0,96311.0,9.1e-07]
[1732761711661,0.57264619,96312.0,96311.0,9.1e-07]
[1732761711894,0.56764619,96312.0,96311.0,9.1e-07]
[1732761712130,0.56664619,96312.0,96311.0,9.1e-07]
[1732761712368,0.57564619,96312.0,96311.0,9.1e-07]
[1732761712851,0.56664619,96312.0,96311.0,9.1e-07]
[1732761713086,0.57564619,96312.0,96311.0,9.1e-07]
[1732761713781,0.56764619,96312.0,96311.0,3.1e-07]
[1732761714025,0.57664619,96312.0,96311.0,3.1e-07]
[1732761714485,0.66960392,96312.0,96311.0,3.1e-07]
[1732761715415,0.57664619,96312.0,96311.0,3.1e-07]
[1732761715649,0.66964719,96312.0,96311.0,3.1e-07]
[1732761716611,0.57664619,96312.0,96311.0,3.1e-07]
[1732761717564,0.58664619,96312.0,96311.0,3.1e-07]
[1732761717835,0.58638281,96312.0,96311.0,3.1e-07]
[1732761718052,0.78194048,96312.0,96311.0,3.1e-07]
[1732761718697,1.48194048,96312.0,96311.0,3.1e-07]
[1732761718918,1.34239539,96312.0,96311.0,3.1e-07]
[1732761720005,1.28638281,96312.0,96311.0,3.1e-07]
[1732761721424,1.51888531,96312.0,96311.0,3.1e-07]
[1732761721654,1.28638281,96312.0,96311.0,3.1e-07]
[1732761721870,0.58638281,96312.0,96311.0,3.1e-07]
[1732761722761,0.81888531,96312.0,96311.0,3.1e-07]
[1732761722990,0.92171677,96312.0,96311.0,3.1e-07]
[1732761723222,0.68921427,96312.0,96311.0,3.1e-07]
[1732761723903,1.23301427,96312.0,96311.0,3.1e-07]
[1732761725029,1.22401427,96312.0,96311.0,3.1e-07]
[1732761725246,1.40116404,96312.0,96311.0,3.1e-07]
[1732761725458,1.22401427,96312.0,96311.0,3.1e-07]
[1732761726108,1.23301427,96312.0,96311.0,3.1e-07]
[1732761726339,1.24927866,96312.0,96311.0,3.1e-07]
[1732761726559,1.24199546,96312.0,96311.0,3.1e-07]
[1732761727236,1.25099546,96312.0,96311.0,3.1e-07]
[1732761727659,1.24199546,96312.0,96311.0,3.1e-07]
[1732761727880,1.13890011,96312.0,96311.0,3.1e-07]
[1732761728096,1.14790011,96312.0,96311.0,3.1e-07]
[1732761728342,1.13890011,96312.0,96311.0,3.1e-07]
[1732761728571,1.14790011,96312.0,96311.0,3.1e-07]
[1732761729210,1.38040261,96312.0,96311.0,3.1e-07]
[1732761729417,1.14790011,96312.0,96311.0,3.1e-07]
[1732761729647,1.38040261,96312.0,96311.0,3.1e-07]
[1732761729865,0.83679743,96312.0,96311.0,3.1e-07]
[1732761731225,0.88482302,96312.0,96311.0,3.1e-07]
[1732761732833,1.42862302,96312.0,96311.0,3.1e-07]
[1732761734376,1.1959257,96312.0,96311.0,3.1e-07]
[1732761735902,0.6521257,96312.0,96311.0,3.1e-07]
[1732761736595,0.50542551,96312.0,96311.0,3.1e-07]
[1732761736811,0.43732551,96312.0,96311.0,3.1e-07]
[1732761737028,0.6236002,96312.0,96311.0,3.1e-07]
[1732761737246,0.44680011,96312.0,96311.0,3.1e-07]
[1732761737487,0.67964347,96312.0,96311.0,3.1e-07]
[1732761737910,0.67937843,96312.0,96311.0,3.1e-07]
[1732761738387,0.46953507,96312.0,96311.0,3.1e-07]
[1732761738855,0.46544609,96312.0,96311.0,3.1e-07]
[1732761739516,0.69835744,96312.0,96311.0,3.1e-07]
[1732761740451,0.46544609,96312.0,96311.0,3.1e-07]
[1732761740689,0.45597149,96312.0,96311.0,3.1e-07]
[1732761741173,0.42277337,96312.0,96311.0,3.1e-07]
[1732761741386,0.28297149,96312.0,96311.0,3.1e-07]
[1732761742311,0.54917387,96312.0,96311.0,3.1e-07]
[1732761742520,0.58677337,96312.0,96311.0,3.1e-07]
[1732761742954,0.59577337,96312.0,96311.0,3.1e-07]
[1732761743166,0.58677337,96312.0,96311.0,3.1e-07]
[1732761743379,0.45497149,96312.0,96311.0,3.1e-07]
[1732761744112,0.253834,96307.0,96306.0,0.11710031]
[1732761744333,0.253834,96307.0,96300.0,0.01]
[1732761744334,0.276841,96301.0,96300.0,0.01]
[1732761744553,0.41200071,96301.0,96300.0,0.01]
[1732761744768,0.41200071,96301.0,96279.0,0.0005254]
[1732761744769,0.173,96300.0,96279.0,0.0005254]
[1732761744997,0.126846,96296.0,96279.0,0.0005254]
[1732761745215,0.126846,96296.0,96274.0,0.0017178]
[1732761745216,0.26383982,96296.0,96278.0,0.0005254]
[1732761745433,0.27078127,96296.0,96278.0,0.0005254]
[1732761746305,0.27078127,96296.0,96274.0,0.0017178]
[1732761746306,0.42778127,96296.0,96274.0,0.0017178]
[1732761746560,0.6245635,96296.0,96274.0,0.0017178]
[1732761746785,0.43815599,96296.0,96274.0,0.0017178]
[1732761747001,0.43815599,96296.0,96284.0,0.0821]
[1732761747928,0.44289035,96296.0,96284.0,0.0821]
[1732761748379,0.43589035,96296.0,96284.0,0.0821]
[1732761748819,0.44489035,96296.0,96280.0,0.0495]
[1732761749043,0.44489035,96296.0,96295.0,0.1333174]
[1732761749044,0.27189035,96296.0,96295.0,0.1333174]
[1732761753406,0.23957585,96296.0,96295.0,0.1333174]
[1732761757889,0.23934666,96296.0,96295.0,0.1333174]
[1732761759738,0.02277556,96296.0,96295.0,0.1338428]
[1732761759952,0.02277556,96296.0,96295.0,0.2376898]
[1732761760389,0.014,96296.0,96295.0,0.2376898]
[1732761760640,0.009,96296.0,96295.0,0.1338428]
[1732761760873,0.12662666,96296.0,96295.0,0.1338428]
[1732761761095,0.117846,96296.0,96295.0,0.1338428]
[1732761761335,0.12162666,96296.0,96295.0,0.1338428]
[1732761761563,0.12334386,96296.0,96295.0,0.1338428]
[1732761761807,0.12334386,96296.0,96295.0,0.1333174]
[1732761762026,0.12334386,96296.0,96295.0,0.1338428]
[1732761762243,0.22618907,96296.0,96295.0,0.1338428]
[1732761762464,0.21718907,96296.0,96295.0,0.1338428]
[1732761762694,0.21718907,96296.0,96295.0,0.1333174]
[1732761762921,0.22618907,96296.0,96295.0,0.1338428]
[1732761763177,0.21718907,96296.0,96295.0,0.1338428]
[1732761763418,0.11634307,96296.0,96295.0,0.1338428]
[1732761764060,0.01349786,96296.0,96295.0,0.1338428]
[1732761764483,0.0047172,96296.0,96295.0,0.1338428]
[1732761764693,0.01349786,96296.0,96295.0,0.13568071]
[1732761764905,0.0047172,96296.0,96295.0,0.1338428]
[1732761765578,0.1085632,96296.0,96295.0,0.1338428]
[1732761765785,0.11736434,96296.0,96295.0,0.1338428]
[1732761766243,0.01351834,96296.0,96295.0,0.1338428]
[1732761766684,0.01351834,96296.0,96295.0,0.2376898]
[1732761766918,0.01351834,96296.0,96295.0,0.1338428]
[1732761767835,0.0047172,96296.0,96295.0,0.1338428]
[1732761768045,0.01351834,96296.0,96295.0,0.1338428]
[1732761768282,0.0047172,96296.0,96295.0,0.1338428]
[1732761768735,0.01351834,96296.0,96295.0,0.1338428]
[1732761768949,0.0047172,96296.0,96295.0,0.1338428]
[1732761769174,0.11736434,96296.0,96295.0,0.1338428]
[1732761769391,0.1085632,96296.0,96295.0,0.1338428]
[1732761769607,0.11736434,96296.0,96295.0,0.1338428]
[1732761771646,0.11736434,96296.0,96295.0,0.0838174]
[1732761771871,0.22020955,96296.0,96295.0,0.0838174]
[1732761772306,0.22020955,96296.0,96295.0,0.0017174]
[1732761773506,0.23036089,96296.0,96295.0,0.0017174]
[1732761773737,0.22936089,96296.0,96295.0,0.0017174]
[1732761774183,0.23236089,96296.0,96295.0,0.0017174]
[1732761774643,0.23436089,96296.0,96295.0,0.0017174]
[1732761775355,0.22420955,96296.0,96295.0,0.0842428]
[1732761775585,0.22420955,96296.0,96295.0,0.0837174]
[1732761775853,0.22420955,96296.0,96295.0,0.0017174]
[1732761784732,0.22420955,96296.0,96295.0,0.0022428]
[1732761789881,0.22420955,96296.0,96295.0,0.0017174]
[1732761792663,0.19420955,96296.0,96295.0,0.0017174]
[1732761792875,0.11864635,96296.0,96295.0,0.0017174]
[1732761793097,0.22249235,96296.0,96295.0,0.0017174]
[1732761797607,0.22420955,96296.0,96295.0,0.0017174]
[1732761799235,0.24720955,96296.0,96295.0,0.0017174]
[1732761799473,0.44585993,96296.0,96295.0,0.0017174]
[1732761800386,0.44085993,96296.0,96295.0,0.0017174]
[1732761800603,0.48745993,96296.0,96295.0,0.0017174]
[1732761800823,0.49445993,96296.0,96295.0,0.0017174]
[1732761801086,0.63436826,96296.0,96295.0,0.0017174]
[1732761801602,0.57675993,96296.0,96295.0,4e-07]
[1732761802490,0.58175993,96296.0,96295.0,4e-07]
[1732761802932,0.57675993,96296.0,96295.0,4e-07]
[1732761803369,0.58475993,96296.0,96295.0,4e-07]
[1732761803789,0.57575993,96296.0,96295.0,4e-07]
[1732761804011,0.7619182,96296.0,96295.0,4e-07]
[1732761804225,0.7709182,96296.0,96295.0,4e-07]
[1732761804439,0.58475993,96296.0,96295.0,4e-07]
[1732761804668,0.7709182,96296.0,96295.0,4e-07]
[1732761805539,0.58475993,96296.0,96295.0,4e-07]
[1732761805780,0.59423453,96296.0,96295.0,4e-07]
[1732761806454,0.73376071,96296.0,96295.0,4e-07]
[1732761806951,0.59423453,96296.0,96295.0,4e-07]
[1732761807405,0.73374774,96296.0,96295.0,4e-07]
[1732761808559,0.59423453,96296.0,96295.0,4e-07]
[1732761808772,0.73374774,96296.0,96295.0,4e-07]
[1732761809649,0.59423453,96296.0,96295.0,4e-07]
[1732761810346,0.6872007,96296.0,96295.0,4e-07]
[1732761810560,0.59423453,96296.0,96295.0,4e-07]
[1732761811460,0.68719396,96296.0,96295.0,4e-07]
[1732761812172,0.68719418,96296.0,96295.0,4e-07]
[1732761818405,0.59423453,96296.0,96295.0,4e-07]
[1732761824529,0.58680414,96296.0,96295.0,4e-07]
[1732761824746,0.59405954,96296.0,96295.0,4e-07]
[1732761828087,0.10385,96292.0,96291.0,4e-07]
[1732761828304,0.41391663,96292.0,96291.0,4e-07]
[1732761828514,0.41945948,96292.0,96291.0,4e-07]
[1732761831006,0.44551549,96292.0,96291.0,4e-07]
[1732761833441,0.44551549,96292.0,96291.0,0.0008586]
[1732761836858,0.53849348,96292.0,96291.0,0.0008586]
[1732761837297,0.44551549,96292.0,96291.0,0.0008586]
[1732761837519,0.54796808,96292.0,96291.0,6e-07]
[1732761837734,0.50249009,96292.0,96291.0,6e-07]
[1732761838412,0.50249009,96292.0,96280.0,6e-07]
[1732761838413,0.276862,96281.0,96280.0,6e-07]
[1732761838637,0.55086912,96281.0,96280.0,6e-07]
[1732761838878,0.55822303,96281.0,96280.0,6e-07]
[1732761839559,0.69768657,96281.0,96280.0,6e-07]
[1732761839998,0.70266933,96281.0,96280.0,6e-07]
[1732761840218,0.71298738,96281.0,96280.0,6e-07]
[1732761840466,0.57754108,96281.0,96280.0,6e-07]
[1732761840682,0.43876648,96281.0,96280.0,6e-07]
[1732761840902,0.52875587,96281.0,96280.0,6e-07]
[1732761841119,0.43576648,96281.0,96280.0,6e-07]
[1732761841567,0.52875587,96281.0,96280.0,6e-07]
[1732761841827,0.43576648,96281.0,96280.0,6e-07]
[1732761842066,0.57525598,96281.0,96280.0,6e-07]
[1732761842284,0.58425598,96281.0,96280.0,6e-07]
[1732761842502,0.44476648,96281.0,96280.0,6e-07]
[1732761842984,0.42976648,96281.0,96280.0,6e-07]
[1732761843219,0.43676648,96281.0,96280.0,6e-07]
[1732761843449,0.63183459,96281.0,96280.0,6e-07]
[1732761843660,0.61583459,96281.0,96280.0,6e-07]
[1732761844098,0.44576648,96281.0,96280.0,6e-07]
[1732761845415,0.67835162,96281.0,96280.0,6e-07]
[1732761845632,0.44576648,96281.0,96280.0,6e-07]
[1732761846742,0.44576648,96281.0,96280.0,0.0008588]
[1732761847671,0.45524108,96281.0,96280.0,0.0008588]
[1732761847902,0.50514108,96281.0,96280.0,0.0008588]
[1732761848133,0.50514108,96281.0,96280.0,8e-07]
[1732761848355,0.58034108,96281.0,96280.0,8e-07]
[1732761850226,0.0094746,96277.0,96274.0,6e-07]
[1732761850454,0.56608162,96275.0,96274.0,6e-07]
[1732761850693,0.59846893,96275.0,96274.0,6e-07]
[1732761850905,0.60782895,96275.0,96274.0,6e-07]
[1732761851794,0.42146154,96275.0,96274.0,6e-07]
[1732761852009,0.6543803,96275.0,96274.0,6e-07]
[1732761852228,0.6543803,96275.0,96273.0,0.0017182]
[1732761852229,0.1133446,96274.0,96273.0,8e-07]
[1732761852446,0.47331123,96274.0,96273.0,8e-07]
[1732761852656,0.48083267,96274.0,96273.0,8e-07]
[1732761853620,0.48983267,96274.0,96273.0,8e-07]
[1732761854704,0.49483267,96274.0,96273.0,8e-07]
[1732761854930,0.41245807,96274.0,96273.0,8e-07]
[1732761856481,0.43545807,96274.0,96273.0,8e-07]
[1732761856896,0.5285871,96274.0,96273.0,8e-07]
[1732761857357,0.43545807,96274.0,96273.0,8e-07]
[1732761857797,0.41245807,96274.0,96273.0,8e-07]
[1732761858940,0.38007076,96274.0,96273.0,8e-07]
[1732761859414,0.23007076,96274.0,96273.0,0.1223262]
[1732761860502,0.22507076,96274.0,96273.0,0.1223262]
[1732761860916,0.22107076,96274.0,96273.0,0.1223262]
[1732761861136,0.23007076,96274.0,96273.0,0.1223262]
[1732761861364,0.22507076,96274.0,96273.0,0.1223262]
[1732761861809,0.22707076,96274.0,96273.0,0.1223262]
[1732761862706,0.21807076,96274.0,96273.0,0.1223262]
[1732761863163,0.22307076,96274.0,96273.0,0.1223262]
[1732761864782,0.22307076,96274.0,96273.0,0.1218008]
[1732761865864,0.22307076,96274.0,96273.0,8e-07]
[1732761867728,0.25539494,96274.0,96273.0,8e-07]
[1732761867938,0.22307076,96274.0,96273.0,8e-07]
[1732761869759,0.25539575,96274.0,96273.0,8e-07]
[1732761871355,0.25711255,96274.0,96273.0,8e-07]
[1732761871804,0.40711255,96274.0,96273.0,8e-07]
[1732761873445,0.40711255,96274.0,96273.0,0.0763008]
[1732761873446,0.22478756,96274.0,96273.0,0.0763008]
[1732761875900,0.22478756,96274.0,96273.0,8e-07]
[1732761880257,0.103873,96271.0,96270.0,0.01912553]
[1732761880498,0.20671821,96271.0,96270.0,0.01912553]
[1732761880734,0.36901249,96271.0,96270.0,0.01718219]
[1732761880986,0.36717838,96271.0,96270.0,0.01718219]
[1732761881205,0.39949705,96271.0,96270.0,0.01718219]
[1732761882775,0.54016259,96271.0,96270.0,0.01718219]
[1732761882992,0.40049705,96271.0,96270.0,0.01718219]
[1732761883219,0.40953699,96271.0,96270.0,0.01718219]
[1732761883505,0.41253699,96271.0,96270.0,0.01718219]
[1732761883738,0.41453699,96271.0,96270.0,0.01718219]
[1732761883962,0.41453699,96271.0,96270.0,0.01804059]
[1732761883963,0.42353699,96271.0,96270.0,0.01804059]
[1732761884171,0.71070023,96271.0,96270.0,0.01804059]
[1732761884394,0.71570023,96271.0,96270.0,0.01804059]
[1732761884613,0.76530023,96271.0,96270.0,0.01804059]
[1732761884827,0.97452095,96271.0,96270.0,0.01804059]
[1732761885031,0.87447483,96271.0,96270.0,0.01804059]
[1732761885659,0.1133486,96270.0,96269.0,8.9e-07]
[1732761885873,0.2863596,96260.0,96249.0,0.0008585]
[1732761886086,0.60760207,96260.0,96249.0,0.0008585]
[1732761886299,0.61801021,96260.0,96249.0,0.0008585]
[1732761886523,0.58553561,96260.0,96249.0,0.0008585]
[1732761886740,0.58548454,96260.0,96249.0,0.0008585]
[1732761886949,0.39945702,96260.0,96249.0,0.0008585]
[1732761887160,0.40645702,96260.0,96249.0,0.0008585]
[1732761887595,0.40145702,96260.0,96249.0,0.0008585]
[1732761887812,0.40845702,96260.0,96249.0,0.0008585]
[1732761888503,0.44093162,96260.0,96249.0,0.0008585]
[1732761888715,0.5804057,96260.0,96249.0,0.0008585]
[1732761889613,0.5844057,96260.0,96249.0,0.0008585]
[1732761890765,0.44493162,96260.0,96249.0,0.0008585]
[1732761890995,0.43545702,96260.0,96249.0,0.0008585]
[1732761891459,0.44493162,96260.0,96249.0,0.0008585]
[1732761891728,0.57323162,96260.0,96249.0,0.0008585]
[1732761891955,0.7127057,96260.0,96249.0,0.0008585]
[1732761892205,0.72287353,96260.0,96249.0,0.0008585]
[1732761892429,0.68623091,96260.0,96249.0,0.0008585]
[1732761892658,0.82562582,96260.0,96249.0,0.0008585]
[1732761892884,0.72279436,96260.0,96249.0,0.0008585]
[1732761893590,0.58339945,96260.0,96249.0,0.0008585]
[1732761893822,0.7227739,96260.0,96249.0,0.0008585]
[1732761894053,0.58339945,96260.0,96249.0,0.0008585]
[1732761894564,0.68623091,96260.0,96249.0,0.0008585]
[1732761895045,0.58339945,96260.0,96249.0,0.0008585]
[1732761895947,0.67629151,96260.0,96249.0,0.0008585]
[1732761897030,0.58339945,96260.0,96249.0,0.0008585]
[1732761897243,0.67628297,96260.0,96249.0,0.0008585]
[1732761897675,0.58339945,96260.0,96249.0,0.0008585]
[1732761897890,0.77641959,96260.0,96249.0,0.0008585]
[1732761898336,0.58339945,96260.0,96249.0,0.0008585]
[1732761899031,0.57939945,96260.0,96249.0,0.0008585]
[1732761899248,0.58639945,96260.0,96249.0,0.0008585]
[1732761899461,0.67928297,96260.0,96249.0,0.0008585]
[1732761899685,0.58639945,96260.0,96249.0,0.0008585]
[1732761899897,0.57039945,96260.0,96249.0,0.0008585]
[1732761900124,0.58639945,96260.0,96249.0,0.0008585]
[1732761901946,0.103893,96252.0,96249.0,0.0008585]
[1732761902176,0.2863706,96250.0,96249.0,5e-07]
[1732761902391,0.42153448,96250.0,96249.0,5e-07]
[1732761902608,0.53466082,96250.0,96249.0,5e-07]
[1732761902841,0.96016082,96250.0,96249.0,5e-07]
[1732761903055,1.14574242,96250.0,96249.0,5e-07]
[1732761903268,1.14573869,96250.0,96249.0,5e-07]
[1732761903485,1.15592713,96250.0,96249.0,5e-07]
[1732761903908,1.16292713,96250.0,96249.0,5e-07]
[1732761904335,0.98639413,96250.0,96249.0,5e-07]
[1732761904803,1.00725053,96250.0,96249.0,5e-07]
[1732761905022,0.253913,96234.0,96233.0,0.0008583]
[1732761905237,0.37975821,96234.0,96233.0,0.0008583]
[1732761905468,0.38999007,96234.0,96233.0,0.0008583]
[1732761905679,0.0094746,96232.0,96231.0,3e-07]
[1732761905913,0.4232636,96232.0,96231.0,3e-07]
[1732761906130,0.43163786,96232.0,96231.0,3e-07]
[1732761906353,0.43163786,96232.0,96220.0,0.0008584]
[1732761906354,0.0094746,96221.0,96220.0,0.0008584]
[1732761906591,0.38924681,96221.0,96220.0,0.0008584]
[1732761906775,0.3994412,96221.0,96220.0,0.0008584]
[1732761907468,0.3994412,96221.0,96220.0,4e-07]
[1732761907679,0.4463412,96221.0,96220.0,4e-07]
[1732761908121,0.4553412,96221.0,96220.0,4e-07]
[1732761909007,0.4623412,96221.0,96220.0,4e-07]
[1732761909465,0.4553412,96221.0,96220.0,4e-07]
[1732761909717,0.46337843,96221.0,96220.0,4e-07]
[1732761910159,0.47237843,96221.0,96220.0,4e-07]
[1732761910373,0.46337843,96221.0,96220.0,4e-07]
[1732761910588,0.47237843,96221.0,96220.0,4e-07]
[1732761910798,0.46537843,96221.0,96220.0,4e-07]
[1732761911246,0.56820989,96221.0,96220.0,4e-07]
[1732761912354,0.57520989,96221.0,96220.0,4e-07]
[1732761913236,1.19760989,96221.0,96220.0,4e-07]
[1732761913688,1.22973203,96221.0,96220.0,4e-07]
[1732761913903,1.22973203,96221.0,96191.0,0.0002]
[1732761913904,0.1134136,96210.0,96191.0,0.0002]
[1732761914129,0.39109292,96210.0,96191.0,0.0002]
[1732761914380,0.39934094,96210.0,96191.0,0.0002]
[1732761915278,0.40834094,96210.0,96191.0,0.0002]
[1732761915735,0.42272843,96210.0,96191.0,0.0002]
[1732761916659,0.41872843,96210.0,96191.0,0.0002]
[1732761917132,0.40972843,96210.0,96191.0,0.0002]
[1732761917334,0.40972843,96210.0,96209.0,6e-07]
[1732761917614,0.41872843,96210.0,96209.0,6e-07]
[1732761918043,0.42772843,96210.0,96209.0,6e-07]
[1732761918538,0.47692843,96210.0,96209.0,6e-07]
[1732761918757,0.50903179,96210.0,96209.0,6e-07]
[1732761918980,0.58613179,96210.0,96209.0,6e-07]
[1732761919270,1.12993179,96210.0,96209.0,6e-07]
[1732761919479,1.15041793,96210.0,96209.0,6e-07]
[1732761919879,1.16670004,96210.0,96209.0,6e-07]
[1732761920357,0.2634256,96199.0,96191.0,0.0002]
[1732761920571,0.38927081,96199.0,96191.0,0.0002]
[1732761920783,0.39932,96199.0,96191.0,0.0002]
[1732761921676,0.40429339,96199.0,96191.0,0.0002]
[1732761923264,0.41029339,96199.0,96191.0,0.0002]
[1732761923663,0.40429339,96199.0,96191.0,0.0002]
[1732761923899,0.39529339,96199.0,96191.0,0.0002]
[1732761924123,0.40429339,96199.0,96191.0,0.0002]
[1732761924333,0.41329339,96199.0,96191.0,0.0002]
[1732761924561,0.40429339,96199.0,96191.0,0.0002]
[1732761924975,0.41329339,96199.0,96191.0,0.0002]
[1732761926324,0.41329339,96199.0,96198.0,7e-07]
[1732761927013,0.42336545,96199.0,96198.0,7e-07]
[1732761927488,0.52619691,96199.0,96198.0,7e-07]
[1732761927706,1.15050829,96199.0,96198.0,7e-07]
[1732761927923,1.22580829,96199.0,96198.0,7e-07]
[1732761929056,1.92580829,96199.0,96198.0,7e-07]
[1732761931926,1.69927683,96199.0,96198.0,7e-07]
[1732761934349,1.15547683,96199.0,96198.0,7e-07]
[1732761934577,1.20457683,96199.0,96198.0,7e-07]
[1732761935311,1.20457683,96199.0,96175.0,0.0787]
[1732761935312,0.103973,96178.0,96175.0,0.0787]
[1732761935534,0.20681821,96178.0,96175.0,0.0787]
[1732761935761,0.21276539,96178.0,96175.0,0.0787]
[1732761935961,0.2145995,96178.0,96175.0,0.0787]
[1732761936951,0.2205995,96178.0,96175.0,0.0787]
[1732761937175,0.21706714,96178.0,96175.0,0.0787]
[1732761937428,0.24925447,96178.0,96175.0,0.0787]
[1732761937907,0.39925447,96178.0,96175.0,0.0787]
[1732761938136,0.40095231,96178.0,96175.0,0.0787]
[1732761938367,0.39495231,96178.0,96175.0,0.0787]